[Event "Titled Tuesday Blitz May 23 Early 2023"]
[White "Iskusnyh, Sergei"]
[Black "Golubev, Mikhail"]
[WhiteFideId "4120027"]
[BlackFideId "14100983"]
[WhiteElo "2492"]
[BlackElo "2374"]
[Result "0-1"]
[Round "06"]
[TimeControl "180+2"]
[Date "2023.05.23"]
[WhiteClock "0:00:26"]
[BlackClock "0:00:18"]

1. d4 {[%clk 0:02:59]}  Nf6 {[%clk 0:02:59]} 2. c4 {[%clk 0:02:58]}  g6 {[%clk 0:02:57]} 3. g3 {[%clk 0:02:59]}  Bg7 {[%clk 0:02:58]} 4. Bg2 {[%clk 0:03:00]}  O-O {[%clk 0:02:58]} 5. Nc3 {[%clk 0:03:00]}  d6 {[%clk 0:02:59]} 6. Nf3 {[%clk 0:03:01]}  Nbd7 {[%clk 0:02:59]} 7. O-O {[%clk 0:02:59]}  e5 {[%clk 0:03:00]} 8. e4 {[%clk 0:02:59]}  Re8 {[%clk 0:03:00]} 9. h3 {[%clk 0:02:58]}  b6 {[%clk 0:03:00]} 10. Be3 {[%clk 0:02:53]}  Bb7 {[%clk 0:02:48]} 11. Qc2 {[%clk 0:02:50]}  Nxe4 {[%clk 0:02:36]} 12. Nxe4 {[%clk 0:02:44]}  Bxe4 {[%clk 0:02:35]} 13. Qxe4 {[%clk 0:02:14]}  exd4 {[%clk 0:02:35]} 14. Nxd4 {[%clk 0:02:04]}  Rxe4 {[%clk 0:02:30]} 15. Bxe4 {[%clk 0:02:05]}  Rc8 {[%clk 0:02:14]} 16. Nc6 {[%clk 0:01:58]}  Qf8 {[%clk 0:02:05]} 17. Nxa7 {[%clk 0:01:51]}  Re8 {[%clk 0:02:03]} 18. Bc6 {[%clk 0:01:50]}  Re7 {[%clk 0:00:54]} 19. Bg5 {[%clk 0:01:47]}  Bf6 {[%clk 0:00:52]} 20. Bxf6 {[%clk 0:01:40]}  Nxf6 {[%clk 0:00:53]} 21. Rae1 {[%clk 0:01:40]}  Rxe1 {[%clk 0:00:53]} 22. Rxe1 {[%clk 0:01:39]}  Qh6 {[%clk 0:00:47]} 23. b3 {[%clk 0:01:05]}  Qxh3 {[%clk 0:00:38]} 24. Nb5 {[%clk 0:01:01]}  Kg7 {[%clk 0:00:26]} 25. Nxc7 {[%clk 0:00:59]}  Qc8 {[%clk 0:00:23]} 26. Re7 {[%clk 0:00:53]}  Kf8 {[%clk 0:00:18]} 27. Bb7 {[%clk 0:00:34]}  Qxb7 {[%clk 0:00:18]} 28. Ne6+ {[%clk 0:00:26]}  Kxe7 {[%clk 0:00:18]} 0-1


[Site "https://www.chess.com"]

[Event "Titled Tuesday Blitz May 23 Early 2023"]
[White "Vargas, Gabriela"]
[Black "Guz, Ari"]
[WhiteFideId "3700860"]
[BlackFideId "2825759"]
[WhiteElo "2057"]
[BlackElo "2205"]
[Result "0-1"]
[Round "06"]
[TimeControl "180+2"]
[Date "2023.05.23"]
[WhiteClock "0:00:56"]
[BlackClock "0:00:16"]

1. d4 {[%clk 0:03:00]}  Nf6 {[%clk 0:00:48]} 2. Nf3 {[%clk 0:02:59]}  e6 {[%clk 0:00:48]} 3. Bg5 {[%clk 0:02:58]}  a6 {[%clk 0:00:47]} 4. Nbd2 {[%clk 0:02:56]}  Be7 {[%clk 0:00:47]} 5. c3 {[%clk 0:02:55]}  b5 {[%clk 0:00:44]} 6. e4 {[%clk 0:02:47]}  Bb7 {[%clk 0:00:44]} 7. Bd3 {[%clk 0:02:47]}  d6 {[%clk 0:00:44]} 8. Qe2 {[%clk 0:02:46]}  c5 {[%clk 0:00:45]} 9. O-O {[%clk 0:02:42]}  Nbd7 {[%clk 0:00:43]} 10. Rfe1 {[%clk 0:02:42]}  h6 {[%clk 0:00:41]} 11. Bh4 {[%clk 0:02:41]}  Nh5 {[%clk 0:00:42]} 12. Bg3 {[%clk 0:02:41]}  Nxg3 {[%clk 0:00:42]} 13. hxg3 {[%clk 0:02:42]}  O-O {[%clk 0:00:42]} 14. a4 {[%clk 0:02:42]}  b4 {[%clk 0:00:41]} 15. Nc4 {[%clk 0:02:40]}  Rc8 {[%clk 0:00:37]} 16. Rac1 {[%clk 0:02:33]}  Nb6 {[%clk 0:00:34]} 17. Nxb6 {[%clk 0:02:27]}  Qxb6 {[%clk 0:00:27]} 18. Bb1 {[%clk 0:02:22]}  cxd4 {[%clk 0:00:24]} 19. cxd4 {[%clk 0:02:20]}  d5 {[%clk 0:00:24]} 20. e5 {[%clk 0:02:19]}  a5 {[%clk 0:00:25]} 21. Qd3 {[%clk 0:02:18]}  g6 {[%clk 0:00:25]} 22. Qe3 {[%clk 0:02:13]}  Kg7 {[%clk 0:00:25]} 23. Nh4 {[%clk 0:02:08]}  Rxc1 {[%clk 0:00:21]} 24. Rxc1 {[%clk 0:02:08]}  Rc8 {[%clk 0:00:22]} 25. Rxc8 {[%clk 0:02:07]}  Bxc8 {[%clk 0:00:23]} 26. Qc1 {[%clk 0:02:04]}  Bd7 {[%clk 0:00:22]} 27. Nf3 {[%clk 0:01:41]}  Bxa4 {[%clk 0:00:21]} 28. Qc8 {[%clk 0:01:40]}  Qc6 {[%clk 0:00:21]} 29. Qxc6 {[%clk 0:01:37]}  Bxc6 {[%clk 0:00:21]} 30. Bd3 {[%clk 0:01:37]}  a4 {[%clk 0:00:22]} 31. Nd2 {[%clk 0:01:36]}  a3 {[%clk 0:00:22]} 32. bxa3 {[%clk 0:01:35]}  bxa3 {[%clk 0:00:23]} 33. Bb1 {[%clk 0:01:34]}  Bb4 {[%clk 0:00:22]} 34. Nb3 {[%clk 0:01:33]}  Bc3 {[%clk 0:00:22]} 35. Ba2 {[%clk 0:01:33]}  Ba4 {[%clk 0:00:22]} 36. f4 {[%clk 0:01:32]}  g5 {[%clk 0:00:21]} 37. Kf1 {[%clk 0:01:29]}  Bxb3 {[%clk 0:00:20]} 38. Bxb3 {[%clk 0:01:29]}  Bxd4 {[%clk 0:00:20]} 39. Ke2 {[%clk 0:01:29]}  Kg6 {[%clk 0:00:21]} 40. Kf3 {[%clk 0:01:28]}  h5 {[%clk 0:00:19]} 41. Ba2 {[%clk 0:01:27]}  h4 {[%clk 0:00:16]} 42. Bb1+ {[%clk 0:01:26]}  Kh6 {[%clk 0:00:15]} 43. g4 {[%clk 0:01:24]}  gxf4 {[%clk 0:00:15]} 44. Kxf4 {[%clk 0:01:24]}  Kg7 {[%clk 0:00:16]} 45. g5 {[%clk 0:01:22]}  Bf2 {[%clk 0:00:16]} 46. Kg4 {[%clk 0:01:21]}  Bg3 {[%clk 0:00:16]} 47. Ba2 {[%clk 0:01:17]}  Bxe5 {[%clk 0:00:16]} 48. Kxh4 {[%clk 0:01:17]}  Bb2 {[%clk 0:00:14]} 49. Kg4 {[%clk 0:01:17]}  Kf8 {[%clk 0:00:14]} 50. Kf3 {[%clk 0:01:14]}  Ke7 {[%clk 0:00:14]} 51. g4 {[%clk 0:01:14]}  Bc1 {[%clk 0:00:14]} 52. g6 {[%clk 0:01:15]}  fxg6 {[%clk 0:00:14]} 53. Ke2 {[%clk 0:01:14]}  Kd6 {[%clk 0:00:14]} 54. Kd3 {[%clk 0:01:14]}  Bb2 {[%clk 0:00:14]} 55. Kc2 {[%clk 0:01:14]}  e5 {[%clk 0:00:15]} 56. Kb3 {[%clk 0:01:14]}  Kc5 {[%clk 0:00:15]} 57. Bb1 {[%clk 0:01:15]}  e4 {[%clk 0:00:16]} 58. Ka2 {[%clk 0:01:09]}  Kd4 {[%clk 0:00:14]} 59. Bc2 {[%clk 0:01:09]}  Ke3 {[%clk 0:00:15]} 60. Kb1 {[%clk 0:01:09]}  d4 {[%clk 0:00:15]} 61. Bb3 {[%clk 0:01:07]}  d3 {[%clk 0:00:15]} 62. Bf7 {[%clk 0:01:08]}  Kd2 {[%clk 0:00:13]} 63. Bxg6 {[%clk 0:01:07]}  e3 {[%clk 0:00:14]} 64. Ka2 {[%clk 0:01:07]}  e2 {[%clk 0:00:14]} 65. g5 {[%clk 0:01:00]}  e1=Q {[%clk 0:00:15]} 66. Bxd3 {[%clk 0:00:58]}  Qe6+ {[%clk 0:00:15]} 67. Kb1 {[%clk 0:00:57]}  Qb3 {[%clk 0:00:15]} 68. Bc4 {[%clk 0:00:56]}  a2# {[%clk 0:00:16]} 0-1


[Site "https://www.chess.com"]

[Event "Titled Tuesday Blitz May 23 Early 2023"]
[White "Mogirzan, Matei-Valeriu"]
[Black "Kim, Sergey"]
[WhiteFideId "1257455"]
[BlackFideId "13700570"]
[WhiteElo "1733"]
[BlackElo "2566"]
[Result "0-1"]
[Round "06"]
[TimeControl "180+2"]
[Date "2023.05.23"]
[WhiteClock "0:00:03"]
[BlackClock "0:00:04"]

1. e4 {[%clk 0:03:00]}  e5 {[%clk 0:03:00]} 2. f4 {[%clk 0:02:56]}  Bc5 {[%clk 0:02:58]} 3. Nf3 {[%clk 0:02:55]}  d6 {[%clk 0:02:58]} 4. c3 {[%clk 0:02:52]}  Nc6 {[%clk 0:02:58]} 5. d4 {[%clk 0:02:52]}  exd4 {[%clk 0:02:59]} 6. cxd4 {[%clk 0:02:53]}  Bb6 {[%clk 0:03:00]} 7. Nc3 {[%clk 0:02:51]}  Nf6 {[%clk 0:03:00]} 8. Bd3 {[%clk 0:02:47]}  O-O {[%clk 0:02:58]} 9. e5 {[%clk 0:02:41]}  Ng4 {[%clk 0:02:52]} 10. h3 {[%clk 0:02:19]}  Nh6 {[%clk 0:02:50]} 11. d5 {[%clk 0:02:15]}  Nb4 {[%clk 0:02:12]} 12. Bb1 {[%clk 0:02:01]}  Nf5 {[%clk 0:02:07]} 13. g4 {[%clk 0:01:33]}  Nh4 {[%clk 0:01:47]} 14. a3 {[%clk 0:01:24]}  Na6 {[%clk 0:01:38]} 15. Qc2 {[%clk 0:01:02]}  Nxf3+ {[%clk 0:01:28]} 16. Kf1 {[%clk 0:01:00]}  g6 {[%clk 0:01:28]} 17. Ne4 {[%clk 0:00:57]}  dxe5 {[%clk 0:01:21]} 18. f5 {[%clk 0:00:43]}  Nd4 {[%clk 0:01:07]} 19. Qd2 {[%clk 0:00:39]}  Qh4 {[%clk 0:00:47]} 20. Qg2 {[%clk 0:00:17]}  f6 {[%clk 0:00:30]} 21. d6 {[%clk 0:00:10]}  c6 {[%clk 0:00:22]} 22. Be3 {[%clk 0:00:08]}  Nc5 {[%clk 0:00:19]} 23. Bf2 {[%clk 0:00:04]}  Qh6 {[%clk 0:00:19]} 24. h4 {[%clk 0:00:03]}  Nxe4 {[%clk 0:00:18]} 25. Bxe4 {[%clk 0:00:04]}  Qd2 {[%clk 0:00:15]} 26. g5 {[%clk 0:00:04]}  Bxf5 {[%clk 0:00:13]} 27. Bxf5 {[%clk 0:00:04]}  Qe2+ {[%clk 0:00:11]} 28. Kg1 {[%clk 0:00:04]}  Nf3+ {[%clk 0:00:11]} 29. Qxf3 {[%clk 0:00:04]}  Qxf3 {[%clk 0:00:11]} 30. Be6+ {[%clk 0:00:05]}  Kg7 {[%clk 0:00:11]} 31. Bxb6 {[%clk 0:00:06]}  axb6 {[%clk 0:00:10]} 32. Rh3 {[%clk 0:00:05]}  Qf4 {[%clk 0:00:09]} 33. Rf1 {[%clk 0:00:05]}  Qd4+ {[%clk 0:00:08]} 34. Kh1 {[%clk 0:00:04]}  fxg5 {[%clk 0:00:08]} 35. Rg1 {[%clk 0:00:02]}  g4 {[%clk 0:00:06]} 36. Rhg3 {[%clk 0:00:02]}  Rf4 {[%clk 0:00:06]} 37. d7 {[%clk 0:00:02]}  Qd6 {[%clk 0:00:05]} 38. Bxg4 {[%clk 0:00:01]}  e4 {[%clk 0:00:05]} 39. h5 {[%clk 0:00:01]}  Rxg4 {[%clk 0:00:04]} 40. Rxg4 {[%clk 0:00:02]}  Qxd7 {[%clk 0:00:04]} 41. hxg6 {[%clk 0:00:02]}  h6 {[%clk 0:00:05]} 42. Rf4 {[%clk 0:00:02]}  Qd5 {[%clk 0:00:04]} 43. Rf7+ {[%clk 0:00:02]}  Kg8 {[%clk 0:00:04]} 44. Rh7 {[%clk 0:00:01]}  e3+ {[%clk 0:00:04]} 45. Kh2 {[%clk 0:00:01]}  Qh5+ {[%clk 0:00:04]} 46. Kg2 {[%clk 0:00:02]}  Qxg6+ {[%clk 0:00:05]} 47. Kh2 {[%clk 0:00:03]}  Qxg1+ {[%clk 0:00:04]} 48. Kxg1 {[%clk 0:00:03]}  Kxh7 {[%clk 0:00:04]} 0-1


[Site "https://www.chess.com"]

[Event "Titled Tuesday Blitz May 23 Early 2023"]
[White "Novikova, Galina"]
[Black "egorchess95"]
[WhiteFideId "4157095"]
[WhiteElo "1953"]
[BlackElo "2555"]
[Result "0-1"]
[Round "06"]
[TimeControl "180+2"]
[Date "2023.05.23"]
[WhiteClock "0:00:00"]
[BlackClock "0:01:01"]

1. e4 {[%clk 0:03:00]}  c5 {[%clk 0:03:00]} 2. Nf3 {[%clk 0:03:00]}  Nc6 {[%clk 0:03:00]} 3. d4 {[%clk 0:03:01]}  cxd4 {[%clk 0:03:00]} 4. Nxd4 {[%clk 0:03:02]}  Nf6 {[%clk 0:03:01]} 5. Nc3 {[%clk 0:03:02]}  e5 {[%clk 0:03:01]} 6. Ndb5 {[%clk 0:03:02]}  d6 {[%clk 0:03:01]} 7. Bg5 {[%clk 0:03:03]}  a6 {[%clk 0:03:01]} 8. Na3 {[%clk 0:03:03]}  Be6 {[%clk 0:03:01]} 9. Nd5 {[%clk 0:02:51]}  Bxd5 {[%clk 0:03:01]} 10. exd5 {[%clk 0:02:52]}  Qa5+ {[%clk 0:03:01]} 11. c3 {[%clk 0:02:41]}  Qxd5 {[%clk 0:02:59]} 12. Qxd5 {[%clk 0:02:40]}  Nxd5 {[%clk 0:03:00]} 13. O-O-O {[%clk 0:02:39]}  Nb6 {[%clk 0:02:32]} 14. Be3 {[%clk 0:02:13]}  Nc8 {[%clk 0:02:30]} 15. Nc4 {[%clk 0:02:12]}  b5 {[%clk 0:02:29]} 16. Nb6 {[%clk 0:01:48]}  Nxb6 {[%clk 0:02:28]} 17. Bxb6 {[%clk 0:01:48]}  Be7 {[%clk 0:01:56]} 18. g3 {[%clk 0:01:49]}  O-O {[%clk 0:01:54]} 19. Bg2 {[%clk 0:01:49]}  Rac8 {[%clk 0:01:54]} 20. Kb1 {[%clk 0:01:38]}  b4 {[%clk 0:01:32]} 21. c4 {[%clk 0:00:56]}  Nd8 {[%clk 0:01:19]} 22. b3 {[%clk 0:00:51]}  Ne6 {[%clk 0:01:19]} 23. Be3 {[%clk 0:00:49]}  Rfd8 {[%clk 0:01:18]} 24. Bb7 {[%clk 0:00:46]}  Rb8 {[%clk 0:01:18]} 25. Bxa6 {[%clk 0:00:45]}  Nc7 {[%clk 0:01:18]} 26. Bb5 {[%clk 0:00:36]}  Nxb5 {[%clk 0:01:19]} 27. cxb5 {[%clk 0:00:37]}  Rxb5 {[%clk 0:01:20]} 28. Rc1 {[%clk 0:00:29]}  d5 {[%clk 0:01:19]} 29. Rc7 {[%clk 0:00:28]}  Bf8 {[%clk 0:01:17]} 30. Rd1 {[%clk 0:00:26]}  d4 {[%clk 0:01:17]} 31. Bc1 {[%clk 0:00:24]}  Rbd5 {[%clk 0:01:15]} 32. Rc4 {[%clk 0:00:20]}  f5 {[%clk 0:01:13]} 33. Bd2 {[%clk 0:00:20]}  Rb8 {[%clk 0:01:10]} 34. Re1 {[%clk 0:00:20]}  e4 {[%clk 0:01:08]} 35. Bf4 {[%clk 0:00:18]}  Rb7 {[%clk 0:01:08]} 36. Rd1 {[%clk 0:00:18]}  d3 {[%clk 0:01:07]} 37. Be3 {[%clk 0:00:17]}  Be7 {[%clk 0:01:04]} 38. h4 {[%clk 0:00:17]}  Kf7 {[%clk 0:01:04]} 39. g4 {[%clk 0:00:04]}  g6 {[%clk 0:01:03]} 40. gxf5 {[%clk 0:00:04]}  gxf5 {[%clk 0:01:04]} 41. h5 {[%clk 0:00:04]}  Bf6 {[%clk 0:01:04]} 42. Bf4 {[%clk 0:00:03]}  Ra5 {[%clk 0:01:01]} 43. Bd2 {[%clk 0:00:00]}  Rxa2 {[%clk 0:01:01]} 0-1


[Site "https://www.chess.com"]

[Event "Titled Tuesday Blitz May 23 Early 2023"]
[White "Toncheva, Nadya"]
[Black "Davidson, Kevin"]
[WhiteFideId "2924056"]
[BlackFideId "2056810"]
[WhiteElo "2101"]
[BlackElo "2151"]
[Result "1-0"]
[Round "06"]
[TimeControl "180+2"]
[Date "2023.05.23"]
[WhiteClock "0:01:20"]
[BlackClock "0:00:00"]

1. e4 {[%clk 0:03:00]}  c5 {[%clk 0:02:59]} 2. c3 {[%clk 0:02:59]}  d5 {[%clk 0:02:59]} 3. exd5 {[%clk 0:03:00]}  Qxd5 {[%clk 0:03:00]} 4. Nf3 {[%clk 0:03:00]}  Nc6 {[%clk 0:03:00]} 5. d4 {[%clk 0:03:01]}  Bg4 {[%clk 0:03:00]} 6. Be2 {[%clk 0:03:00]}  cxd4 {[%clk 0:03:00]} 7. cxd4 {[%clk 0:02:59]}  e6 {[%clk 0:03:00]} 8. Nc3 {[%clk 0:02:58]}  Bb4 {[%clk 0:03:00]} 9. O-O {[%clk 0:02:58]}  Qa5 {[%clk 0:03:00]} 10. Rb1 {[%clk 0:02:58]}  Nf6 {[%clk 0:02:56]} 11. h3 {[%clk 0:02:56]}  Bh5 {[%clk 0:02:54]} 12. a3 {[%clk 0:02:46]}  Bd6 {[%clk 0:02:49]} 13. b4 {[%clk 0:02:46]}  Qd8 {[%clk 0:02:48]} 14. b5 {[%clk 0:02:46]}  Ne7 {[%clk 0:02:27]} 15. Ne5 {[%clk 0:02:45]}  Bxe2 {[%clk 0:02:24]} 16. Qxe2 {[%clk 0:02:46]}  Rc8 {[%clk 0:02:16]} 17. Ne4 {[%clk 0:02:39]}  Nxe4 {[%clk 0:02:14]} 18. Qxe4 {[%clk 0:02:40]}  Nd5 {[%clk 0:02:06]} 19. Rb3 {[%clk 0:02:28]}  O-O {[%clk 0:01:57]} 20. Qg4 {[%clk 0:02:21]}  Nf6 {[%clk 0:01:20]} 21. Qg3 {[%clk 0:02:12]}  Nd7 {[%clk 0:00:35]} 22. Bh6 {[%clk 0:01:58]}  g6 {[%clk 0:00:21]} 23. Bxf8 {[%clk 0:01:57]}  Nxf8 {[%clk 0:00:19]} 24. Qf3 {[%clk 0:01:54]}  f6 {[%clk 0:00:17]} 25. Ng4 {[%clk 0:01:51]}  f5 {[%clk 0:00:14]} 26. Ne5 {[%clk 0:01:50]}  Qc7 {[%clk 0:00:11]} 27. Re1 {[%clk 0:01:42]}  Kg7 {[%clk 0:00:03]} 28. Nd3 {[%clk 0:01:36]}  Qe7 {[%clk 0:00:03]} 29. a4 {[%clk 0:01:34]}  Rc2 {[%clk 0:00:02]} 30. Rb2 {[%clk 0:01:31]}  Qc7 {[%clk 0:00:02]} 31. Rxc2 {[%clk 0:01:27]}  Qxc2 {[%clk 0:00:03]} 32. Qxb7+ {[%clk 0:01:27]}  Kh6 {[%clk 0:00:01]} 33. Ne5 {[%clk 0:01:24]}  Qd2 {[%clk 0:00:01]} 34. Nf7+ {[%clk 0:01:20]}  Kh5 {[%clk 0:00:00]} 35. Qf3+ {[%clk 0:01:20]} 1-0


[Site "https://www.chess.com"]

[Event "Titled Tuesday Blitz May 23 Early 2023"]
[White "Makhmudov, Shukhrat"]
[Black "Saya, Ethan"]
[WhiteFideId "14200775"]
[BlackFideId "26095181"]
[WhiteElo "2135"]
[BlackElo "2164"]
[Result "1/2-1/2"]
[Round "06"]
[TimeControl "180+2"]
[Date "2023.05.23"]
[WhiteClock "0:00:19"]
[BlackClock "0:00:09"]

1. e4 {[%clk 0:01:36]}  c5 {[%clk 0:02:54]} 2. Nf3 {[%clk 0:01:37]}  d6 {[%clk 0:02:52]} 3. d4 {[%clk 0:01:37]}  cxd4 {[%clk 0:02:53]} 4. Nxd4 {[%clk 0:01:38]}  Nf6 {[%clk 0:02:54]} 5. Nc3 {[%clk 0:01:38]}  g6 {[%clk 0:02:52]} 6. Bg5 {[%clk 0:01:38]}  Bg7 {[%clk 0:02:51]} 7. Bxf6 {[%clk 0:01:38]}  Bxf6 {[%clk 0:02:50]} 8. Nd5 {[%clk 0:01:39]}  Bg7 {[%clk 0:02:39]} 9. Bb5+ {[%clk 0:01:39]}  Bd7 {[%clk 0:02:37]} 10. Bxd7+ {[%clk 0:01:39]}  Nxd7 {[%clk 0:02:35]} 11. c3 {[%clk 0:01:39]}  O-O {[%clk 0:02:32]} 12. O-O {[%clk 0:01:38]}  Nc5 {[%clk 0:02:26]} 13. Re1 {[%clk 0:01:35]}  Re8 {[%clk 0:02:22]} 14. Nb3 {[%clk 0:01:31]}  Na4 {[%clk 0:02:20]} 15. Qe2 {[%clk 0:01:27]}  Nb6 {[%clk 0:02:11]} 16. Rad1 {[%clk 0:01:26]}  Rc8 {[%clk 0:02:11]} 17. Qe3 {[%clk 0:01:25]}  Nc4 {[%clk 0:02:02]} 18. Qe2 {[%clk 0:01:25]}  a6 {[%clk 0:01:58]} 19. h3 {[%clk 0:01:23]}  b5 {[%clk 0:01:58]} 20. Nb4 {[%clk 0:01:22]}  Qb6 {[%clk 0:01:55]} 21. Nd5 {[%clk 0:01:19]}  Qb7 {[%clk 0:01:53]} 22. Rd3 {[%clk 0:01:15]}  a5 {[%clk 0:01:50]} 23. a3 {[%clk 0:01:06]}  e6 {[%clk 0:01:45]} 24. Nf4 {[%clk 0:01:01]}  b4 {[%clk 0:01:34]} 25. cxb4 {[%clk 0:00:50]}  axb4 {[%clk 0:01:32]} 26. a4 {[%clk 0:00:34]}  Nxb2 {[%clk 0:01:30]} 27. Rxd6 {[%clk 0:00:33]}  Nxa4 {[%clk 0:01:30]} 28. e5 {[%clk 0:00:32]}  Nc3 {[%clk 0:01:26]} 29. Qa6 {[%clk 0:00:26]}  Qxa6 {[%clk 0:01:23]} 30. Rxa6 {[%clk 0:00:27]}  Nd5 {[%clk 0:01:22]} 31. Nxd5 {[%clk 0:00:27]}  exd5 {[%clk 0:01:22]} 32. Rb6 {[%clk 0:00:27]}  Rxe5 {[%clk 0:01:21]} 33. Rxe5 {[%clk 0:00:27]}  Bxe5 {[%clk 0:01:22]} 34. Rxb4 {[%clk 0:00:27]}  d4 {[%clk 0:01:14]} 35. g3 {[%clk 0:00:22]}  d3 {[%clk 0:01:14]} 36. Rb5 {[%clk 0:00:20]}  Bc3 {[%clk 0:01:10]} 37. Rd5 {[%clk 0:00:19]}  Rb8 {[%clk 0:01:10]} 38. Nc5 {[%clk 0:00:19]}  d2 {[%clk 0:01:09]} 39. Kg2 {[%clk 0:00:19]}  Rb1 {[%clk 0:01:08]} 40. Ne4 {[%clk 0:00:16]}  d1=Q {[%clk 0:01:08]} 41. Rxd1 {[%clk 0:00:15]}  Rxd1 {[%clk 0:01:09]} 42. Nxc3 {[%clk 0:00:16]}  Rd8 {[%clk 0:01:09]} 43. Ne4 {[%clk 0:00:16]}  Kg7 {[%clk 0:01:09]} 44. h4 {[%clk 0:00:16]}  f5 {[%clk 0:01:09]} 45. Ng5 {[%clk 0:00:16]}  Re8 {[%clk 0:01:08]} 46. Kf3 {[%clk 0:00:16]}  h6 {[%clk 0:01:08]} 47. Nh3 {[%clk 0:00:17]}  Kf6 {[%clk 0:01:08]} 48. Nf4 {[%clk 0:00:17]}  Rd8 {[%clk 0:01:07]} 49. Ng2 {[%clk 0:00:16]}  Ke5 {[%clk 0:01:06]} 50. Nf4 {[%clk 0:00:16]}  Rd6 {[%clk 0:01:05]} 51. Ne2 {[%clk 0:00:15]}  Rd3+ {[%clk 0:01:05]} 52. Kg2 {[%clk 0:00:15]}  Ra3 {[%clk 0:01:05]} 53. Nf4 {[%clk 0:00:16]}  g5 {[%clk 0:01:03]} 54. hxg5 {[%clk 0:00:16]}  hxg5 {[%clk 0:01:04]} 55. Nh3 {[%clk 0:00:17]}  Kf6 {[%clk 0:01:02]} 56. Ng1 {[%clk 0:00:16]}  Ra2 {[%clk 0:00:57]} 57. Nf3 {[%clk 0:00:17]}  g4 {[%clk 0:00:54]} 58. Nd4 {[%clk 0:00:17]}  Ke5 {[%clk 0:00:52]} 59. Nc6+ {[%clk 0:00:17]}  Ke4 {[%clk 0:00:52]} 60. Ne7 {[%clk 0:00:16]}  Ra7 {[%clk 0:00:50]} 61. Ng6 {[%clk 0:00:16]}  Ra3 {[%clk 0:00:47]} 62. Nf4 {[%clk 0:00:17]}  Rf3 {[%clk 0:00:48]} 63. Ne6 {[%clk 0:00:17]}  Rc3 {[%clk 0:00:45]} 64. Nf4 {[%clk 0:00:17]}  Rc2 {[%clk 0:00:44]} 65. Ne6 {[%clk 0:00:17]}  Ra2 {[%clk 0:00:43]} 66. Nf4 {[%clk 0:00:17]}  Ra6 {[%clk 0:00:42]} 67. Nh5 {[%clk 0:00:17]}  Ke5 {[%clk 0:00:37]} 68. Nf4 {[%clk 0:00:16]}  Ra4 {[%clk 0:00:36]} 69. Nd3+ {[%clk 0:00:16]}  Kd6 {[%clk 0:00:36]} 70. Nf4 {[%clk 0:00:17]}  Re4 {[%clk 0:00:30]} 71. Ng6 {[%clk 0:00:17]}  Kd5 {[%clk 0:00:28]} 72. Nf4+ {[%clk 0:00:17]}  Kd4 {[%clk 0:00:20]} 73. Ng6 {[%clk 0:00:17]}  Re8 {[%clk 0:00:19]} 74. Nf4 {[%clk 0:00:18]}  Ke4 {[%clk 0:00:19]} 75. Nh5 {[%clk 0:00:17]}  Rh8 {[%clk 0:00:17]} 76. Nf4 {[%clk 0:00:16]}  Rh6 {[%clk 0:00:16]} 77. Ne2 {[%clk 0:00:16]}  Ra6 {[%clk 0:00:15]} 78. Nf4 {[%clk 0:00:16]}  Ke5 {[%clk 0:00:15]} 79. Ne2 {[%clk 0:00:16]}  Ra4 {[%clk 0:00:15]} 80. Nf4 {[%clk 0:00:16]}  Rxf4 {[%clk 0:00:15]} 81. gxf4+ {[%clk 0:00:16]}  Kxf4 {[%clk 0:00:16]} 82. Kg1 {[%clk 0:00:16]}  Kf3 {[%clk 0:00:10]} 83. Kf1 {[%clk 0:00:17]}  f4 {[%clk 0:00:11]} 84. Kg1 {[%clk 0:00:17]}  g3 {[%clk 0:00:11]} 85. fxg3 {[%clk 0:00:16]}  Kxg3 {[%clk 0:00:12]} 86. Kh1 {[%clk 0:00:16]}  f3 {[%clk 0:00:12]} 87. Kg1 {[%clk 0:00:17]}  Kg4 {[%clk 0:00:04]} 88. Kf2 {[%clk 0:00:17]}  Kf4 {[%clk 0:00:05]} 89. Kf1 {[%clk 0:00:17]}  Ke5 {[%clk 0:00:05]} 90. Kf2 {[%clk 0:00:17]}  Ke4 {[%clk 0:00:05]} 91. Kf1 {[%clk 0:00:18]}  Ke3 {[%clk 0:00:05]} 92. Ke1 {[%clk 0:00:18]}  Ke4 {[%clk 0:00:05]} 93. Kf2 {[%clk 0:00:18]}  Kf4 {[%clk 0:00:06]} 94. Kf1 {[%clk 0:00:19]}  Kg3 {[%clk 0:00:07]} 95. Kg1 {[%clk 0:00:19]}  Kh3 {[%clk 0:00:08]} 96. Kf2 {[%clk 0:00:19]}  Kg4 {[%clk 0:00:08]} 97. Kf1 {[%clk 0:00:19]}  Kg3 {[%clk 0:00:09]} 98. Kg1 {[%clk 0:00:19]} 1/2-1/2


[Site "https://www.chess.com"]

[Event "Titled Tuesday Blitz May 23 Early 2023"]
[White "Goltseva, Ekaterina"]
[Black "Herzog2012"]
[WhiteFideId "24173770"]
[WhiteElo "2114"]
[BlackElo "2351"]
[Result "0-1"]
[Round "06"]
[TimeControl "180+2"]
[Date "2023.05.23"]
[WhiteClock "0:00:00"]
[BlackClock "0:00:22"]

1. e4 {[%clk 0:03:00]}  c5 {[%clk 0:02:57]} 2. Nf3 {[%clk 0:02:58]}  Nc6 {[%clk 0:02:57]} 3. d4 {[%clk 0:02:54]}  cxd4 {[%clk 0:02:58]} 4. Nxd4 {[%clk 0:02:54]}  Nf6 {[%clk 0:02:57]} 5. Nc3 {[%clk 0:02:54]}  d6 {[%clk 0:02:58]} 6. Be2 {[%clk 0:02:52]}  e5 {[%clk 0:02:57]} 7. Nb3 {[%clk 0:02:52]}  Be7 {[%clk 0:02:54]} 8. O-O {[%clk 0:02:51]}  O-O {[%clk 0:02:53]} 9. f4 {[%clk 0:02:50]}  a5 {[%clk 0:02:54]} 10. a4 {[%clk 0:02:49]}  Nb4 {[%clk 0:02:54]} 11. Kh1 {[%clk 0:02:22]}  Be6 {[%clk 0:02:51]} 12. f5 {[%clk 0:02:00]}  Bxb3 {[%clk 0:02:49]} 13. cxb3 {[%clk 0:02:01]}  d5 {[%clk 0:02:50]} 14. exd5 {[%clk 0:02:01]}  Nbxd5 {[%clk 0:02:44]} 15. Bf3 {[%clk 0:01:53]}  Nxc3 {[%clk 0:02:37]} 16. bxc3 {[%clk 0:01:53]}  e4 {[%clk 0:02:35]} 17. Be2 {[%clk 0:01:50]}  Qxd1 {[%clk 0:02:30]} 18. Rxd1 {[%clk 0:01:51]}  Rfd8 {[%clk 0:02:30]} 19. Be3 {[%clk 0:01:44]}  Rxd1+ {[%clk 0:02:23]} 20. Rxd1 {[%clk 0:01:43]}  Rd8 {[%clk 0:02:23]} 21. Bb6 {[%clk 0:01:41]}  Rxd1+ {[%clk 0:02:21]} 22. Bxd1 {[%clk 0:01:42]}  Nd5 {[%clk 0:02:21]} 23. Bxa5 {[%clk 0:01:42]}  b6 {[%clk 0:02:21]} 24. Bb4 {[%clk 0:01:36]}  Bxb4 {[%clk 0:02:12]} 25. cxb4 {[%clk 0:01:37]}  Nxb4 {[%clk 0:02:10]} 26. Kg1 {[%clk 0:01:35]}  g6 {[%clk 0:01:47]} 27. Kf2 {[%clk 0:00:57]}  gxf5 {[%clk 0:01:32]} 28. Ke3 {[%clk 0:00:57]}  Kg7 {[%clk 0:01:27]} 29. Be2 {[%clk 0:00:43]}  Kf6 {[%clk 0:01:03]} 30. Bc4 {[%clk 0:00:42]}  Ke5 {[%clk 0:00:59]} 31. g3 {[%clk 0:00:41]}  Nd5+ {[%clk 0:00:58]} 32. Bxd5 {[%clk 0:00:11]}  Kxd5 {[%clk 0:00:57]} 33. b4 {[%clk 0:00:10]}  Kc4 {[%clk 0:00:35]} 34. a5 {[%clk 0:00:10]}  bxa5 {[%clk 0:00:33]} 35. bxa5 {[%clk 0:00:10]}  Kb5 {[%clk 0:00:33]} 36. g4 {[%clk 0:00:10]}  fxg4 {[%clk 0:00:30]} 37. Kxe4 {[%clk 0:00:10]}  h5 {[%clk 0:00:26]} 38. Kf4 {[%clk 0:00:03]}  f6 {[%clk 0:00:21]} 39. h3 {[%clk 0:00:02]}  gxh3 {[%clk 0:00:20]} 40. Kg3 {[%clk 0:00:02]}  f5 {[%clk 0:00:21]} 41. Kxh3 {[%clk 0:00:02]}  f4 {[%clk 0:00:21]} 42. Kh4 {[%clk 0:00:02]}  Kxa5 {[%clk 0:00:21]} 43. Kh3 {[%clk 0:00:03]}  Kb4 {[%clk 0:00:20]} 44. Kg2 {[%clk 0:00:04]}  h4 {[%clk 0:00:21]} 45. Kf3 {[%clk 0:00:04]}  h3 {[%clk 0:00:21]} 46. Kf2 {[%clk 0:00:04]}  Kc3 {[%clk 0:00:21]} 47. Kg1 {[%clk 0:00:05]}  f3 {[%clk 0:00:21]} 48. Kh2 {[%clk 0:00:00]}  f2 {[%clk 0:00:22]} 0-1


[Site "https://www.chess.com"]